Workbook

Sheet D11 (hidden)
B2: BURGER KING - DÁLNICE D11 - ZÁKLADNÍ CHARAKTERISTIKY
B4: OP= | D4: 713 | E4: m3
B5: PP= | D5: 211 | E5: m2
B6: kapacita | D6: 60 | E6: osob
B7: datum realizace | D7: 2010
B8: 0.02
C10: BURGER KING - DÁLNICE D11 - ROZČLENĚNÍ INVESTIČNÍ NÁKLADŮ
C11: Druh nákladů | D11: Celkový náklad (bez DPH) | E11: Způsob stanovení | F11: MJ | G11: Počet MJ | H11: Skladebný ukazatel | I11: Položka propočtu
B12: Stavební práce + vybavení | C12: stavební práce | D12: 5775315 | E12: nákladový ukazatel | F12: m2 | G12: 211 | H12: 27371 | I12: stavební objekty (ZRN)
C13: kuchyně | D13: 2734731 | E13: nákladový ukazatel | F13: osoby | G13: 60 | H13: 45579 | I13: provozní soubor
C14: kasy | D14: 499397 | E14: nákladový ukazatel | F14: osoby | G14: 60 | H14: 8323 | I14: provozní soubor
C15: mrazící a chladící boxy | D15: 329915 | E15: nákladový ukazatel | F15: osoby | G15: 60 | H15: 5499 | I15: provozní soubor
C16: interiér | D16: 1035722 | E16: nákladový ukazatel | F16: osoby | G16: 60 | H16: 17262 | I16: stroje,zařízení,inventář
C17: zmrzlinovač | D17: 389640 | E17: konst.cena | F17: ks | G17: 1 | H17: 389640 | I17: provozní soubor
C18: menuboard | D18: 485143 | E18: nákladový ukazatel | F18: m2 | G18: 211 | H18: 2299 | I18: provozní soubor
C19: pylon | D19: 306000 | E19: konst.cena | F19: ks | G19: 1 | H19: 306000 | I19: ostatní investice
C20: Celkem | D20: 11249863
B22: Ostatní náklady | C22: franchisa | D22: 494953 | E22: konst.cena | F22: ks | G22: 1 | H22: 494953 | I22: nehmotný investiční majetek
C23: odborné služby | D23: 300064 | E23: nákladový ukazatel | F23: m2 | G23: 211 | H23: 1422 | I23: ostatní náklady
C24: projektové práce | D24: 400000 | E24: nákladový ukazatel | F24: m2 | G24: 211 | H24: 1896 | I24: projektové a průzkumné práce
C25: mzdy před provozem | D25: 440000 | E25: konst.cena | F25: ks | G25: 1 | H25: 440000 | I25: provozní náklady na přípravu
C26: pojištění | D26: 150000 | E26: konst.cena | F26: ks | G26: 1 | H26: 150000 | I26: ostatní náklady
C27: nájem před provozem | D27: 100000 | E27: individuální kalkulace | I27: ostatní náklady
C28: peněžní deposit | D28: 46920 | E28: konst.cena | F28: ks | G28: 1 | H28: 46920 | I28: ostatní náklady
C29: cestovné BK | D29: 50000 | E29: nákladový ukazatel | F29: km | G29: 20 | H29: 2500 | I29: provozní náklady na přípravu
C30: Celkem | D30: 1 981 937 Kč
C32: Celkem stavba | D32: 13231800

Sheet Ústí (hidden)
B1: BURGER KING - ÚSTÍ NAD LABEM - ZÁKLADNÍ CHARAKTERISTIKY
B3: OP= | D3: 1295 | E3: m3
B4: PP= | D4: 305 | E4: m2
B5: kapacita | D5: 60 | E5: osob
B6: datum realizace | D6: 2010
B7: 0.02
C9: BURGER KING - ÚSTÍ NAD LABEM - ROZČLENĚNÍ INVESTIČNÍCH NÁKLADŮ
C10: Druh nákladů | D10: Celkový náklad (bez DPH) | E10: Způsob stanovení | F10: MJ | G10: Počet MJ | H10: Skladebný ukazatel | I10: Položka propočtu
B11: Stavební práce + vybavení | C11: stavební práce | D11: 8049588 | E11: nákladový ukazatel | F11: m2 | G11: 305 | H11: 26392 | I11: stavební objekty (ZRN)
C12: kuchyně | D12: 2619244 | E12: nákladový ukazatel | F12: osoby | G12: 60 | H12: 43654 | I12: provozní soubor
C13: kasy | D13: 493449 | E13: nákladový ukazatel | F13: osoby | G13: 60 | H13: 8224 | I13: provozní soubor
C14: mrazící a chladící boxy | D14: 344923 | E14: nákladový ukazatel | F14: osoby | G14: 60 | H14: 5749 | I14: provozní soubor
C15: interiér | D15: 908225 | E15: nákladový ukazatel | F15: osoby | G15: 60 | H15: 15137 | I15: stroje,zařízení,inventář
C16: zmrzlinovač | D16: 389640 | E16: konst.cena | F16: ks | G16: 1 | H16: 389640 | I16: provozní soubor
C17: menuboard | D17: 635715 | E17: nákladový ukazatel | F17: m2 | G17: 305 | H17: 2084 | I17: provozní soubor
C18: Celkem | D18: 13440785
B20: Ostatní náklady | C20: franchisa | D20: 494953 | E20: konst.cena | F20: osoby | G20: 60 | H20: 8249 | I20: nehmotný investiční majetek
C21: odborné služby | D21: 350115 | E21: nákladový ukazatel | F21: m2 | G21: 305 | H21: 1148 | I21: ostatní náklady
C22: projektové práce | D22: 500000 | E22: nákladový ukazatel | F22: m2 | G22: 305 | H22: 1639 | I22: projektové a průzkumné práce
C23: mzdy před provozem | D23: 440000 | E23: konst.cena | F23: ks | G23: 1 | H23: 440000 | I23: provozní náklady na přípravu
C24: pojištění | D24: 150000 | E24: konst.cena | F24: ks | G24: 1 | H24: 150000 | I24: ostatní náklady
C25: nájem před provozem | D25: 375000 | E25: individuální kalkulace | I25: ostatní náklady
C26: peněžní deposit | D26: 46920 | E26: konst.cena | F26: ks | G26: 1 | H26: 46920 | I26: ostatní náklady
C27: cestovné BK | D27: 223000 | E27: nákladový ukazatel | F27: km | G27: 95 | H27: 2347 | I27: provozní náklady na přípravu
C28: Celkem | D28: 2579988
C30: Celkem | D30: 16020774

Sheet Liberec (hidden)
B1: BURGER KING - LIBEREC - ZÁKLADNÍ CHARAKTERISTIKY
B3: OP= | D3: 910 | E3: m3
B4: PP= | D4: 213 | E4: m2
B5: kapacita | D5: 60 | E5: osob
B6: datum realizace | D6: 2010
B7: 0.02
C9: BURGER KING - LIBEREC - ROZČLENĚNÍ INVESTIČNÍCH NÁKLADŮ
C10: Druh nákladů | D10: Celkový náklad (bez DPH) | E10: Způsob stanovení | F10: MJ | G10: Počet MJ | H10: Skladebný ukazatel | I10: Položka propočtu
B11: Stavební práce + vybavení | C11: stavební práce | D11: 5321436 | E11: nákladový ukazatel | F11: m2 | G11: 213 | H11: 24983 | I11: stavební objekty (ZRN)
C12: kuchyně | D12: 2585307 | E12: nákladový ukazatel | F12: osoby | G12: 60 | H12: 43088 | I12: provozní soubor
C13: kasy | D13: 468312 | E13: nákladový ukazatel | F13: osoby | G13: 60 | H13: 7805 | I13: provozní soubor
C14: mrazící a chladící boxy | D14: 425952 | E14: nákladový ukazatel | F14: osoby | G14: 60 | H14: 7099 | I14: provozní soubor
C15: interiér | D15: 928880 | E15: nákladový ukazatel | F15: osoby | G15: 60 | H15: 15481 | I15: stroje,zařízení,inventář
C16: zmrzlinovač | D16: 389640 | E16: konst.cena | F16: ks | G16: 1 | H16: 389640 | I16: provozní soubor
C17: menuboard | D17: 494624 | E17: nákladový ukazatel | F17: m2 | G17: 213 | H17: 2322 | I17: provozní soubor
C18: Celkem | D18: 10614150
B20: Ostatní náklady | C20: franchisa | D20: 494953 | E20: konst.cena | F20: osoby | G20: 60 | H20: 8249 | I20: nehmotný investiční majetek
C21: odborné služby | D21: 248115 | E21: nákladový ukazatel | F21: m2 | G21: 213 | H21: 1165 | I21: ostatní náklady
C22: projektové práce | D22: 400000 | E22: nákladový ukazatel | F22: m2 | G22: 213 | H22: 1878 | I22: projektové a průzkumné práce
C23: mzdy před provozem | D23: 440000 | E23: konst.cena | F23: ks | G23: 1 | H23: 440000 | I23: provozní náklady na přípravu
C24: pojištění | D24: 150000 | E24: konst.cena | F24: ks | G24: 1 | H24: 150000 | I24: ostatní náklady
C25: nájem před provozem | D25: 100000 | E25: individuální kalkulace | I25: ostatní náklady
C26: peněžní deposit | D26: 46920 | E26: konst.cena | F26: ks | G26: 1 | H26: 46920 | I26: ostatní náklady
C27: cestovné BK | D27: 223000 | E27: nákladový ukazatel | F27: km | G27: 110 | H27: 2027 | I27: provozní náklady na přípravu
C28: Celkem | D28: 2102988
C30: Celkem | D30: 12717139

Sheet Chodov (hidden)
B1: OP= | C1: 970 | D1: m3
B2: PP= | C2: 187 | D2: m2
B3: kapacita | C3: 60 | D3: osob
B4: 0.02
E6: Celková cena | F6: způsob stanovení | G6: MJ | H6: počet MJ | I6: Jednotková cena | J6: položka propočtu | K6: poznámka
A7: Stavební práce + vybavení | B7: stavební práce | E7: =[1]Rekapitulace!$C$35*(1+B4) -> 5955249.427 | F7: cenový ukazatel | G7: m2 | H7: 187 | I7: =E7/H7 -> 31846.25362 | J7: stavební objekty (ZRN)
B8: kuchyně | E8: =2617008*(1+B4) -> 2669348.16 | F8: cenový ukazatel | G8: osoby | H8: 60 | I8: =E8/H8 -> 44489.136 | J8: provozní soubor
B9: kasy | E9: =([2]Liberec!$E$15)*(1+B4) -> 468311.58 | F9: cenový ukazatel | G9: osoby | H9: 60 | I9: 7805.193 | J9: provozní soubor
B10: mrazící a chladící boxy | E10: =[2]Liberec!$E$25*(1+B4) -> 425952 | F10: cenový ukazatel | G10: osoby | H10: 60 | I10: 7099.2 | J10: provozní soubor
B11: interiér | E11: 0 | F11: cenový ukazatel | G11: osoby | H11: 60 | I11: 0 | J11: stroje,zařízení,inventář | K11: bez vybavení
B12: zmrzlinovač | E12: =[2]Liberec!$E$23*(1+B4) -> 389640 | F12: konst.cena | G12: ks | H12: 1 | I12: =E12/H12 -> 389640 | J12: provozní soubor
B13: menuboard-reklama | E13: =([2]Liberec!$E$18+[2]Liberec!$E$19)*(1+B4) -> 494623.5 | F13: konst.cena | G13: ks | H13: 1 | I13: =E13/H13 -> 494623.5 | J13: ostatní náklady
B14: ostatní | E14: =([2]Liberec!$E$21+[2]Liberec!$E$29+[2]Liberec!$E$31)*(1+B4) -> 273437.52 | F14: cenový ukazatel | G14: m2 | H14: 187 | I14: =E14/H14 -> 1462.232727 | J14: ostatní náklady
B15: Celkem | E15: =SUM(E7:E13) -> 10403124.67
A17: Ostatní náklady | B17: franchisa | E17: =[2]Liberec!$E$35*(1+B4) -> 494953.47 | F17: cenový ukazatel | G17: osoby | H17: 60 | I17: =E17/H17 -> 8249.2245 | J17: ostatní náklady
B18: odborné služby | E18: =[2]Liberec!$E$37*(1+B4) -> 71400 | F18: cenový ukazatel | G18: m2 | H18: 187 | I18: =E18/H18 -> 381.8181818 | J18: ostatní náklady
B19: projektové práce | E19: =[2]Liberec!$E$49*(1+B4) -> 612000 | F19: cenový ukazatel | G19: m2 | H19: 187 | I19: =E19/H19 -> 3272.727273 | J19: projektové a průzkumné práce
B20: pojištění | E20: =[2]Liberec!$E$39*(1+B4) -> 640305 | F20: cenový ukazatel | G20: m2 | H20: 187 | I20: =E20/H20 -> 3424.090909 | J20: ostatní náklady
B21: ostatní investice | E21: =([2]Liberec!$E$41+[2]Liberec!$E$43+[2]Liberec!$E$45+[2]Liberec!$E$47)*(1+B4) -> 376380 | F21: cenový ukazatel | G21: m2 | H21: 187 | I21: =E21/H21 -> 2012.727273 | J21: ostatní náklady
E22: =SUM(E17:E21) -> 2195038.47
E24: =E15+E22 -> 12598163.14

Sheet celkové projekty (hidden)
C2: projektové práce | D2: boxy | E2: interiér | F2: technologické zázemí kuchyně | G2: stavební práce | H2: celkové náklady
B3: D11 | C3: ='D11'!D24 -> 400000 | D3: ='D11'!D15 -> 329915 | E3: ='D11'!D16 -> 1035722 | F3: ='D11'!D13 -> 2734731 | G3: ='D11'!D12 -> 5775315 | H3: ='D11'!D32 -> 13231800
B4: Ústí | C4: =Ústí!D22 -> 500000 | D4: =Ústí!D14 -> 344923 | E4: =Ústí!D15 -> 908225 | F4: =Ústí!D12 -> 2619244 | G4: =Ústí!D11 -> 8049588 | H4: =Ústí!D30 -> 16020774
B5: Liberec | C5: =Liberec!D22 -> 400000 | D5: =Liberec!D14 -> 425952 | E5: =Liberec!D15 -> 928880 | F5: =Liberec!D12 -> 2585307 | G5: =Liberec!D11 -> 5321436 | H5: =Liberec!D30 -> 12717139

Sheet stavební práce (hidden)
B2: NÁKLADOVÝ UKAZATEL - STAVEBNÍ PRÁCE
C3: Celkové náklady | D3: MJ | E3: Počet MJ | F3: Nákladový ukazatel [Kč/m2]
B4: D11 | C4: 5775315 | D4: m2 | E4: 211 | F4: 27371
B5: Ústí | C5: 8049588 | D5: m2 | E5: 305 | F5: 26392
B6: Liberec | C6: 5321436 | D6: m2 | E6: 213 | F6: 24983
B7: Chodov | C7: 5955249 | D7: m2 | E7: 187 | F7: 31846
B9: VÝSLEDNÝ NÁKLADOVÝ UKAZATEL - stavební práce [Kč/m2] | F9: =SUM(F4:F6)/3 -> 26248.66667

Sheet kuchyně (hidden)
B2: NÁKLADOVÝ UKAZATEL - technologické zázemí kuchyně
C3: Celkové náklady | D3: MJ | E3: Počet MJ | F3: Nákladový ukazatel [Kč/os]
B4: D11 | C4: 2734731 | D4: osoby | E4: 60 | F4: 45579
B5: Ústí | C5: 2619244 | D5: osoby | E5: 60 | F5: 43654
B6: Liberec | C6: 2585307 | D6: osoby | E6: 60 | F6: 43088
B7: Chodov | C7: 2669348 | D7: osoby | E7: 60 | F7: 44489
B9: VÝSLEDNÝ NÁKLADOVÝ UKAZATEL - KUCHYNĚ [Kč/os] | F9: =SUM(F4:F6)/3 -> 44107
B28: NÁKLADOVÝ UKAZATEL - technologické zázemí kuchyně
C29: Celkové náklady | D29: MJ | E29: Počet MJ | F29: Nákladový ukazatel [Kč/m2]
B30: D11 | C30: 2734731 | D30: pp zázemí [m2] | E30: 121.85 | F30: 22443
B31: Ústí | C31: 2619244 | D31: pp zázemí [m2] | E31: 175.96 | F31: 14885
B32: Liberec | C32: 2585307 | D32: pp zázemí [m2] | E32: 131.37 | F32: 19680
B33: Chodov | C33: 2669348 | D33: pp zázemí [m2] | E33: 155.84 | F33: 17129

Sheet kasy (hidden)
B2: NÁKLADOVÝ UKAZATEL - restaurační systémy Micros - kasy
C3: Celkové náklady | D3: MJ | E3: Počet MJ | F3: Nákladový ukazatel [Kč/os]
B4: D11 | C4: 499397 | D4: osoby | E4: 60 | F4: 8323
B5: Ústí | C5: 493449 | D5: osoby | E5: 60 | F5: 8224
B6: Liberec | C6: 468312 | D6: osoby | E6: 60 | F6: 7805
B8: VÝSLEDNÝ NÁKLADOVÝ UKAZATEL - KASY | F8: =SUM(F4:F6)/3 -> 8117.333333

Sheet chladící a mrazící boxy (hidden)
B2: NÁKLADOVÝ UKAZATEL - chladící a mrazící boxy
C3: Celkové náklady | D3: MJ | E3: Počet MJ | F3: Nákladový ukazatel [Kč/os]
B4: D11 | C4: 329915 | D4: osoby | E4: 60 | F4: 5499
B5: Ústí | C5: 344923 | D5: osoby | E5: 60 | F5: 5749
B6: Liberec | C6: 425952 | D6: osoby | E6: 60 | F6: 7099
B8: VÝSLEDNÝ NÁKLADOVÝ UKAZATEL - chladící a mrazící boxy | F8: =SUM(F4:F6)/3 -> 6115.666667
B25: NÁKLADOVÝ UKAZATEL - chladící a mrazící boxy
C26: Celkové náklady | D26: MJ | E26: Počet MJ | F26: Nákladový ukazatel [Kč/m2]
B27: D11 | C27: 329915 | D27: pp zázemí [m2] | E27: 121.85 | F27: 2708
B28: Ústí | C28: 344923 | D28: pp zázemí [m2] | E28: 175.96 | F28: 1960
B29: Liberec | C29: 425952 | D29: pp zázemí [m2] | E29: 131.37 | F29: 3242

Sheet interiér (hidden)
B2: NÁKLADOVÝ UKAZATEL - interiér
C3: Celkové náklady | D3: MJ | E3: Počet MJ | F3: Nákladový ukazatel [Kč/os]
B4: D11 | C4: 1035722 | D4: osoby | E4: 60 | F4: 17262
B5: Ústí | C5: 908225 | D5: osoby | E5: 60 | F5: 15137
B6: Liberec | C6: 928880 | D6: osoby | E6: 60 | F6: 15481
B8: VÝSLEDNÝ NÁKLADOVÝ UKAZATEL - interiér | F8: =SUM(F4:F6)/3 -> 15960
B28: NÁKLADOVÝ UKAZATEL - interiér
C29: Celkové náklady | D29: MJ | E29: Počet MJ | F29: Nákladový ukazatel [Kč/m2]
B30: D11 | C30: 1035722 | D30: pp veř.části [m2] | E30: 89.15 | F30: 11618
B31: Ústí | C31: 908225 | D31: pp veř.části [m2] | E31: 129.04 | F31: 7038
B32: Liberec | C32: 928880 | D32: pp veř.části [m2] | E32: 81.63 | F32: 11379

Sheet menuboard (hidden)
B2: NÁKLADOVÝ UKAZATEL - menuboard
C3: Celkové náklady | D3: MJ | E3: Počet MJ | F3: Nákladový ukazatel [Kč/m2]
B4: D11 | C4: 485143 | D4: m2 | E4: 211 | F4: 2299
B5: Ústí | C5: 635715 | D5: m2 | E5: 305 | F5: 2084
B6: Liberec | C6: 494624 | D6: m2 | E6: 213 | F6: 2322
B8: VÝSLEDNÝ NÁKLADOVÝ UKAZATEL - menuboard [Kč/m2] | F8: =SUM(F4:F6)/3 -> 2235

Sheet odborné služby (hidden)
B2: NÁKLADOVÝ UKAZATEL - odborné služby
C3: Celkové náklady | D3: MJ | E3: Počet MJ | F3: Nákladový ukazatel [Kč/m2]
B4: D11 | C4: 300064 | D4: m2 | E4: 211 | F4: 1422
B5: Ústí | C5: 350115 | D5: m2 | E5: 305 | F5: 1148
B6: Liberec | C6: 248115 | D6: m2 | E6: 213 | F6: 1165
B8: VÝSLEDNÝ NÁKLADOVÝ UKAZATEL - ODBORNÉ SLUŽBY [Kč/m2] | F8: =SUM(F4:F6)/3 -> 1245

Sheet projektové práce (hidden)
B2: NÁKLADOVÝ UKAZATEL - projektové a průzkumné práce
C3: Celkové náklady | D3: MJ | E3: Počet MJ | F3: Nákladový ukazatel [Kč/m2]
B4: D11 | C4: 400000 | D4: m2 | E4: 211 | F4: 1896
B5: Ústí | C5: 500000 | D5: m2 | E5: 305 | F5: 1639
B6: Liberec | C6: 400000 | D6: m2 | E6: 213 | F6: 1878
B8: VÝSLEDNÝ NÁKLADOVÝ UKAZATEL - PROJ. A PR. PRÁCE [Kč/m2] | F8: =SUM(F4:F6)/3 -> 1804.333333
B27: NÁKLAD NA PROJ. A PRŮZKUMNÉ PRÁCE DLE HONORÁŘ. ŘÁDU
C28: Celkové náklady stav. objektů | D28: MJ | E28: Počet MJ | F28: Celkový náklad na proj. práce
B29: D11 | C29: 5775315 | D29: % | E29: 8 | F29: 462025
B30: Ústí | C30: 8049588 | D30: % | E30: 7.7 | F30: 619818
B31: Liberec | C31: 5321436 | D31: % | E31: 8.1 | F31: 431036

Sheet nájemné (hidden)
B3: průměrná cena nájemného nebytových prostor (Kč/měsíc)
B4: Lokalita | C4: Rok
C5: 2010 | D5: 2014
B6: Praha 1 | C6: 400 | D6: 480
B7: Praha 2 | C7: 360 | D7: 440
B8: Praha 3 | C8: 280 | D8: 340
B9: Praha 4 | C9: 250 | D9: 300
B10: Praha 5 | C10: 260 | D10: 320
B11: Praha 6 | C11: 290 | D11: 350
B12: Praha 7 | C12: 230 | D12: 280
B13: Praha 8 | C13: 200 | D13: 240
B14: Praha 9 | C14: 180 | D14: 220
B15: Praha 10 | C15: 210 | D15: 260
B16: Praha - východ | C16: 70 | D16: 90
B17: Praha - západ | C17: 75 | D17: 90
B18: Středočeský kraj | C18: 50 | D18: 60
B19: Jihočeská kraj | C19: 60 | D19: 80
B20: Plzeňský kraj | C20: 65 | D20: 80
B21: Karlovarský kraj | C21: 80 | D21: 100
B22: Ústecký kraj | C22: 55 | D22: 70
B23: Liberecký kraj | C23: 60 | D23: 80
B24: Královehradecký kraj | C24: 80 | D24: 100
B25: Pardubický kraj | C25: 80 | D25: 100
B26: Kraj Vysočina | C26: 60 | D26: 80
B27: Jihomoravský kraj | C27: 100 | D27: 120
B28: Olomoucký kraj | C28: 55 | D28: 70
B29: Moravskoslezský kraj | C29: 40 | D29: 50
B30: Zlínský kraj | C30: 50 | D30: 60

Sheet cestovné (hidden)
B2: NÁKLADOVÝ UKAZATEL - cestovné BK
C3: Celkové náklady | D3: MJ | E3: Počet MJ | F3: Nákladový ukazatel [Kč/km]
B4: D11 | C4: 50000 | D4: km | E4: 20 | F4: 2500
B5: Ústí | C5: 223000 | D5: km | E5: 95 | F5: 2347
B6: Liberec | C6: 223000 | D6: km | E6: 110 | F6: 2027
B8: VÝSLEDNÝ NÁKLADOVÝ UKAZATEL - CESTOVNÉ BK [Kč/km] | F8: =SUM(F4:F6)/3 -> 2291.333333

Sheet mzdy (hidden)
B3: Náklady na mzdy před provozem
B4: pracovník | C4: počet pracovníků | D4: superhrubá měsíční mzda | E4: počet měsíců | F4: náklady investora
B5: vedoucí provozovny | C5: 1 | D5: 46900 | E5: 2 | F5: 93800
B6: zástupce vedoucího | C6: 2 | D6: 33500 | E6: 2 | F6: 134000
B7: manažeři prodeje | C7: 3 | D7: 26800 | E7: 2 | F7: 160800
B8: řadoví zaměstnanci | C8: 10 | D8: 20100 | E8: 1 | F8: 201000
B9: Celkem | F9: 589600

Sheet rekonstrukce (hidden)
B2: D11 | J2: D11
B3: Stavební oddíl | C3: Náklad | D3: MJ | E3: Počet MJ | J3: Stavební oddíl | K3: Náklad | L3: MJ | M3: Počet MJ | O3: pozn.
B4: interiér - dveře | C4: =15653+9026+4049+4049+8098+4049+900+14575 -> 60399 | D4: m2 | E4: 211 | F4: =C4/E4 -> 286.2511848 | J4: interiér - dveře | K4: =15653+9026+4049+4049+8098+4049+900+14575+5*4049 -> 80644 | L4: m2 | M4: 211 | N4: =K4/M4 -> 382.1990521 | O4: přidáno 5 dveří
B5: dlažby | C5: 566669 | D5: m2 | E5: 211 | F5: =C5/E5 -> 2685.635071 | G5: OK | J5: dlažby | K5: 566669 | L5: m2 | M5: 211 | N5: =K5/M5 -> 2685.635071
B6: obklady | C6: 157542 | D6: m2 | E6: 211 | F6: 746.6445498 | J6: obklady | K6: 157542 | L6: m2 | M6: 211 | N6: 746.6445498
B7: malby | C7: 40753 | D7: m2 | E7: 211 | F7: 193.1421801 | J7: malby | K7: =40753/230*400 -> 70874.78261 | L7: m2 | M7: 211 | N7: 335.8994436 | O7: přidány m2 na proveň Liberce
B8: tapety | C8: 16241 | D8: m2 | E8: 211 | F8: 76.97156398 | J8: tapety | K8: =16241/93*166 -> 28989.31183 | L8: m2 | M8: 211 | N8: 137.3901035 | O8: přidány m2 na proveň Liberce
B9: interiér - nábytek | C9: 479511 | D9: m2 | E9: 211 | F9: =C9/E9 -> 2272.563981 | J9: interiér - nábytek | K9: =479511-238428+(238428/9*4) -> 347051 | L9: m2 | M9: 211 | N9: 1644.791469 | O9: ubrány lavice na úroveň Liberce a Ústí
B10: zařizovací předměty | D10: osoby | J10: zařizovací předměty | L10: osoby
B12: CHODOV | J12: CHODOV
B13: Stavební oddíl | C13: Náklad | D13: MJ | E13: Počet MJ | J13: Stavební oddíl | K13: Náklad | L13: MJ | M13: Počet MJ | O13: pozn.
B14: interiér - dveře | C14: =[3]DP!$C$6 -> 81580.8 | D14: m2 | E14: 187 | F14: =C14/E14 -> 436.2609626 | G14: OK | J14: interiér - dveře | K14: =[3]DP!$C$6 -> 81580.8 | L14: m2 | M14: 187 | N14: =K14/M14 -> 436.2609626
B15: dlažby | C15: =[3]DP!$C$7 -> 726526.4 | D15: m2 | E15: 187 | F15: =C15/E15 -> 3885.167914 | G15: ? | J15: dlažby | K15: =[3]DP!$C$7-[4]List1!$F$236-[4]List1!$F$237 -> 543204.8 | L15: m2 | M15: 187 | N15: =K15/M15 -> 2904.838503 | O15: odebrána dilatační lišta MIGUA
B16: obklady | C16: =[3]DP!$C$8 -> 150731.98 | D16: m2 | E16: 187 | F16: =C16/E16 -> 806.053369 | J16: obklady | K16: =[3]DP!$C$8 -> 150731.98 | L16: m2 | M16: 187 | N16: =K16/M16 -> 806.053369
B17: malby | C17: =[3]DP!$C$9 -> 55160.73 | D17: m2 | E17: 187 | F17: =C17/E17 -> 294.9771658 | J17: malby | K17: =[3]DP!$C$9 -> 55160.73 | L17: m2 | M17: 187 | N17: =K17/M17 -> 294.9771658
B18: zařizovací předměty | D18: osoby | J18: zařizovací předměty | L18: osoby
B20: LIBEREC | J20: LIBEREC
B21: Stavební oddíl | C21: Náklad | D21: MJ | E21: Počet MJ | J21: Stavební oddíl | K21: Náklad | L21: MJ | M21: Počet MJ | O21: pozn.
B22: interiér - dveře | C22: =SUM('[5]Stavební rozpočet'!$J$62:$J$73,'[5]Stavební rozpočet'!$J$76) -> 90866.65 | D22: m2 | E22: 213 | F22: =C22/E22 -> 426.6039906 | G22: OK | J22: interiér - dveře | K22: =SUM('[5]Stavební rozpočet'!$J$62:$J$73,'[5]Stavební rozpočet'!$J$76) -> 90866.65 | L22: m2 | M22: 213 | N22: =K22/M22 -> 426.6039906
B23: dlažby | C23: =SUM('[5]Stavební rozpočet'!$J$87) -> 601282.04 | D23: m2 | E23: 213 | F23: =C23/E23 -> 2822.920376 | G23: OK | J23: dlažby | K23: =SUM('[5]Stavební rozpočet'!$J$87) -> 601282.04 | L23: m2 | M23: 213 | N23: =K23/M23 -> 2822.920376
B24: obklady | C24: =SUM('[5]Stavební rozpočet'!$J$120) -> 248542.72 | D24: m2 | E24: 213 | F24: =C24/E24 -> 1166.86723 | J24: obklady | K24: =SUM('[5]Stavební rozpočet'!$J$120)/300*200 -> 165695.1467 | L24: m2 | M24: 213 | N24: =K24/M24 -> 777.9114867 | O24: ubrány m2 obkladů na úroveň D11
B25: malby | C25: =SUM('[5]Stavební rozpočet'!$J$133) -> 59653.3 | D25: m2 | E25: 213 | F25: =C25/E25 -> 280.0624413 | J25: malby | K25: =SUM('[5]Stavební rozpočet'!$J$133) -> 59653.3 | L25: m2 | M25: 213 | N25: =K25/M25 -> 280.0624413
B26: tapety | C26: =SUM('[5]Stavební rozpočet'!$J$139) -> 28883.79 | D26: m2 | E26: 213 | F26: =C26/E26 -> 135.6046479 | J26: tapety | K26: =SUM('[5]Stavební rozpočet'!$J$139) -> 28883.79 | L26: m2 | M26: 213 | N26: =K26/M26 -> 135.6046479
B27: interiér - nábytek | C27: 315567 | D27: m2 | E27: 213 | F27: =C27/E27 -> 1481.535211 | J27: interiér - nábytek | K27: 315567 | L27: m2 | M27: 213 | N27: =K27/M27 -> 1481.535211
B28: zařizovací předměty | C28: =SUM([6]ZTI!$E$64:$E$75) -> 112467.77 | D28: osoby | E28: 60 | F28: 1874.462833 | J28: zařizovací předměty | L28: osoby
B30: ÚSTÍ | J30: ÚSTÍ
B31: Stavební oddíl | C31: Náklad | D31: MJ | E31: Počet MJ | J31: Stavební oddíl | K31: Náklad | L31: MJ | M31: Počet MJ | O31: pozn.
B32: interiér - dveře | C32: =SUM('[7]Stavební rozpočet'!$J$98:$J$110,'[7]Stavební rozpočet'!$J$114:$J$115,'[7]Stavební rozpočet'!$J$92,'[7]Stavební rozpočet'!$J$90,'[7]Stavební rozpočet'!$J$88,'[7]Stavební rozpočet'!$J$86) -> 139668.31 | D32: m2 | E32: 305 | F32: =C32/E32 -> 457.9288852 | G32: OK | J32: interiér - dveře | K32: =SUM('[7]Stavební rozpočet'!$J$98:$J$110,'[7]Stavební rozpočet'!$J$114:$J$115,'[7]Stavební rozpočet'!$J$92,'[7]Stavební rozpočet'!$J$90,'[7]Stavební rozpočet'!$J$88,'[7]Stavební rozpočet'!$J$86) -> 139668.31 | L32: m2 | M32: 305 | N32: =K32/M32 -> 457.9288852
B33: dlažby | C33: =SUM('[7]Stavební rozpočet'!$J$145) -> 851400.94 | D33: m2 | E33: 305 | F33: =C33/E33 -> 2791.478492 | G33: OK | J33: dlažby | K33: =SUM('[7]Stavební rozpočet'!$J$145) -> 851400.94 | L33: m2 | M33: 305 | N33: =K33/M33 -> 2791.478492
B34: obklady | C34: =SUM('[7]Stavební rozpočet'!$J$191) -> 299934.67 | D34: m2 | E34: 305 | F34: =C34/E34 -> 983.3923607 | J34: obklady | K34: =SUM('[7]Stavební rozpočet'!$J$191)-'[8]Stavební rozpočet'!$J$192-'[8]Stavební rozpočet'!$J$193 -> 254430.21 | L34: m2 | M34: 305 | N34: =K34/M34 -> 834.1974098 | O34: odebrán cihelný obklad
B35: malby | C35: =SUM('[7]Stavební rozpočet'!$J$201) -> 147530.25 | D35: m2 | E35: 305 | F35: =C35/E35 -> 483.7057377 | J35: malby | K35: =SUM('[7]Stavební rozpočet'!$J$201)/305*213 -> 103029.3221 | L35: m2 | M35: 305 | N35: =K35/M35 -> 337.8010562 | O35: odebrány m2 na úroveň liberce a D11
B36: tapety | C36: =SUM('[7]Stavební rozpočet'!$J$206) -> 72367.27 | D36: m2 | E36: 305 | F36: =C36/E36 -> 237.2697377 | J36: tapety | K36: =SUM('[7]Stavební rozpočet'!$J$206)/430*166 -> 27937.13214 | L36: m2 | M36: 305 | N36: =K36/M36 -> 91.59715456 | O36: odebrány m2 na úroveň liberce a D11
B37: interiér - nábytek | C37: 478830 | D37: m2 | E37: 305 | F37: =C37/E37 -> 1569.934426 | J37: interiér - nábytek | K37: 478830 | L37: m2 | M37: 305 | N37: =K37/M37 -> 1569.934426
B38: zařizovací předměty | C38: =4620+25080+8800+21780+8360+1980+12650+9020 -> 92290 | D38: osoby | E38: 60 | F38: =C38/E38 -> 1538.166667 | J38: zařizovací předměty | L38: osoby
B41: CHODOVSKÁ | J41: CHODOVSKÁ
B42: Stavební oddíl | C42: Náklad | D42: MJ | E42: Počet MJ | J42: Stavební oddíl | K42: Náklad | L42: MJ | M42: Počet MJ | O42: pozn.
B43: interiér - dveře | D43: m2 | E43: 187 | F43: =C43/E43 -> 0 | G43: OK | J43: interiér - dveře | L43: m2 | M43: 187 | N43: =K43/M43 -> 0
B44: dlažby | D44: m2 | E44: 187 | F44: =C44/E44 -> 0 | G44: ? | J44: dlažby | L44: m2 | M44: 187 | N44: =K44/M44 -> 0 | O44: odebrána dilatační lišta MIGUA
B45: obklady | D45: m2 | E45: 187 | F45: =C45/E45 -> 0 | J45: obklady | L45: m2 | M45: 187 | N45: =K45/M45 -> 0
B46: malby | D46: m2 | E46: 187 | F46: =C46/E46 -> 0 | J46: malby | L46: m2 | M46: 187 | N46: =K46/M46 -> 0
B47: zařizovací předměty | C47: =144207-23328-1352 -> 119527 | D47: osoby | E47: 70 | F47: =C47/E47 -> 1707.528571 | J47: zařizovací předměty | L47: osoby

Sheet interiér dveře (hidden)
B2: NÁKLADOVÝ UKAZATEL - interiérové dveře
C3: Celkové náklady | D3: MJ | E3: Počet MJ | F3: Nákladový ukazatel [Kč/m2]
B4: D11 | C4: =rekonstrukce!C4 -> 60399 | D4: m2 | E4: 211 | F4: =C4/E4 -> 286.2511848
B5: Ústí | C5: =rekonstrukce!C32 -> 139668.31 | D5: m2 | E5: 305 | F5: =C5/E5 -> 457.9288852
B6: Liberec | C6: =rekonstrukce!C22 -> 90866.65 | D6: m2 | E6: 213 | F6: =C6/E6 -> 426.6039906
B7: Chodov | C7: =rekonstrukce!C14 -> 81580.8 | D7: m2 | E7: 187 | F7: =C7/E7 -> 436.2609626
B9: VÝSLEDNÝ NÁKLADOVÝ UKAZATEL - interiérové dveře [Kč/m2] | F9: =SUM(F5:F7)/3 -> 440.2646128

Sheet dlažby (hidden)
B2: NÁKLADOVÝ UKAZATEL - dlažby
C3: Celkové náklady | D3: MJ | E3: Počet MJ | F3: Nákladový ukazatel [Kč/m2]
B4: D11 | C4: =rekonstrukce!C5 -> 566669 | D4: pp veřejné části [m2] | E4: =interiér!E30 -> 89.15 | F4: =C4/E4 -> 6356.354459
B5: Ústí | C5: =rekonstrukce!C33 -> 851400.94 | D5: pp veřejné části [m2] | E5: =interiér!E31 -> 129.04 | F5: =C5/E5 -> 6597.961407
B6: Liberec | C6: =rekonstrukce!C23 -> 601282.04 | D6: pp veřejné části [m2] | E6: =interiér!E32 -> 81.63 | F6: =C6/E6 -> 7365.944383
B9: VÝSLEDNÝ NÁKLADOVÝ UKAZATEL - dlažby [Kč/m2] | F9: =SUM(F4:F6,)/3 -> 6773.420083
B27: NÁKLADOVÝ UKAZATEL - dlažby
C28: Celkové náklady | D28: MJ | E28: Počet MJ | F28: Nákladový ukazatel
B29: D11 | C29: =C4 -> 566669 | D29: m2 | F29: =C29/E29 -> 
B30: Ústí | C30: =C5 -> 851400.94 | D30: m2 | E30: =[9]interiér!$E$30 -> 129.04 | F30: =C30/E30 -> 6597.961407
B31: Liberec | C31: =C6 -> 601282.04 | D31: m2 | E31: =[9]interiér!$E$31 -> 81.63 | F31: =C31/E31 -> 7365.944383

Sheet dlažby - demontáž (hidden)
B4: Náklady na demontáž dlažeb
C5: MJ | D5: Počet MJ | E5: Jednotkový náklad | F5: Celkový náklad
B6: D11 | C6: m2 | D6: =199.36*0.6 -> 119.616 | E6: 58.8 | F6: =D6*E6 -> 7033.4208
B7: Ústí | C7: m2 | D7: =257.27*0.6 -> 154.362 | E7: 58.8 | F7: =D7*E7 -> 9076.4856
B8: Liberec | C8: m2 | D8: =198.53*0.6 -> 119.118 | E8: 58.8 | F8: 7004.1384
B11: Nákladový ukazatel - demontáž dlažeb
C12: Náklady na demontáž | D12: MJ | E12: Počet MJ | F12: Nákladový ukazatel [Kč/m2]
B13: D11 | C13: =F6 -> 7033.4208 | D13: m2 | E13: =dlažby!E4 -> 89.15 | F13: =C13/E13 -> 78.89423219
B14: Ústí | C14: =F7 -> 9076.4856 | D14: m2 | E14: =dlažby!E5 -> 129.04 | F14: =C14/E14 -> 70.33854309
B15: Liberec | C15: =F8 -> 7004.1384 | D15: m2 | E15: =dlažby!E6 -> 81.63 | F15: =C15/E15 -> 85.80348401
B18: CELKOVÝ NÁKLADOVÝ UKAZATEL - demontáž dlažeb [Kč/m2] | F18: =SUM(C13:C15)/SUM(E13:E15) -> 77.09307184

Sheet obklady (hidden)
B2: NÁKLADOVÝ UKAZATEL - obklady
C3: Celkové náklady | D3: MJ | E3: Počet MJ | F3: Nákladový ukazatel [Kč/m2] | G3: Změna
B4: D11 | C4: =rekonstrukce!C6 -> 157542 | D4: m2 | E4: 211 | F4: =C4/E4 -> 746.6445498
B5: Ústí | C5: =rekonstrukce!C34 -> 299934.67 | D5: m2 | E5: 305 | F5: =C5/E5 -> 983.3923607 | G5: =rekonstrukce!N34 -> 834.1974098
B6: Chodov | C6: =rekonstrukce!C16 -> 150731.98 | D6: m2 | E6: 187 | F6: =C6/E6 -> 806.053369
B8: VÝSLEDNÝ NÁKLADOVÝ UKAZATEL - obklady [Kč/m2] | F8: =SUM(F4,G5,F6)/3 -> 795.6317762
B26: NÁKLADOVÝ UKAZATEL - obklady
C27: Celkové náklady | D27: MJ | E27: Počet MJ | F27: Nákladový ukazatel [Kč/os] | G27: Změna
B28: D11 | C28: =C4 -> 157542 | D28: osoby | E28: 60 | F28: =C28/E28 -> 2625.7
B29: Ústí | C29: =C5 -> 299934.67 | D29: osoby | E29: 60 | F29: =C29/E29 -> 4998.911167 | G29: =254430/E29 -> 4240.5
B30: Chodov | C30: 150731.98 | D30: osoby | E30: 60 | F30: =C30/E30 -> 2512.199667
B33: NÁKLADOVÝ UKAZATEL - obklady
C34: Celkové náklady | D34: MJ | E34: Počet MJ | F34: Nákladový ukazatel [Kč/m2] | G34: Změna
B35: D11 | C35: =C28 -> 157542 | D35: zařizovací předměty | F35: =C35/E35 -> 
B36: Ústí | C36: =C29 -> 299934.67 | D36: zařizovací předměty | E36: 60 | F36: =C36/E36 -> 4998.911167 | G36: =254430/E36 -> 4240.5
B37: Chodov | C37: 150731.98 | D37: zařizovací předměty | E37: 60 | F37: =C37/E37 -> 2512.199667

Sheet obklady - demontáž (hidden)
B4: Náklady na demontáž obkladů
C5: MJ | D5: Počet MJ | E5: Jednotkový náklad | F5: Celkový náklad
B6: D11 | C6: m2 | D6: 157.48 | E6: 58.8 | F6: =D6*E6 -> 9259.824
B7: Ústí | C7: m2 | D7: 309.31 | E7: 58.8 | F7: =D7*E7 -> 18187.428
B8: Chodov | C8: m2 | D8: 152.41 | E8: 58.8 | F8: 8961.708
B11: Nákladový ukazatel - demontáž obkladů
C12: Náklady na demontáž | D12: MJ | E12: Počet MJ | F12: Nákladový ukazatel [Kč/m2]
B13: D11 | C13: =F6 -> 9259.824 | D13: m2 | E13: 211 | F13: =C13/E13 -> 43.8854218
B14: Ústí | C14: =F7 -> 18187.428 | D14: m2 | E14: 305 | F14: =C14/E14 -> 59.63091148
B15: Chodov | C15: =F8 -> 8961.708 | D15: m2 | E15: 187 | F15: =C15/E15 -> 47.92357219
B18: VÝSLEDNÝ NÁKLADOVÝ UKAZATEL - demontáž obkladů [Kč/m2] | F18: =SUM(C13:C15)/SUM(E13:E15) -> 51.79083926

Sheet malby (hidden)
B2: NÁKLADOVÝ UKAZATEL - malby
C3: Celkové náklady | D3: MJ | E3: Počet MJ | F3: Nákladový ukazatel [Kč/m2] | G3: Změna
B4: D11 | C4: =rekonstrukce!C7 -> 40753 | D4: m2 | E4: 211 | F4: =C4/E4 -> 193.1421801 | G4: =C4/230*400/E4 -> 335.8994436
B5: Liberec | C5: =rekonstrukce!C25 -> 59653.3 | D5: m2 | E5: 213 | F5: =C5/E5 -> 280.0624413
B6: Chodov | C6: =rekonstrukce!C17 -> 55160.73 | D6: m2 | E6: 187 | F6: =C6/E6 -> 294.9771658
B8: CELKOVÝ NÁKLADOVÝ UKAZATEL - malby [Kč/m2] | F8: =SUM(G4,F5,F6)/3 -> 303.6463502

Sheet malby - škrábání (hidden)
B4: Náklady na oškrábání malby
C5: MJ | D5: Počet MJ | E5: Jednotkový náklad | F5: Celkový náklad
B6: D11 | C6: m2 | D6: =77.75+114.55+61.73+48.84 -> 302.87 | E6: 30 | F6: =D6*E6 -> 9086.1
B7: Liberec | C7: m2 | D7: =183.13+81.63+57.7+96.33 -> 418.79 | E7: 30 | F7: =D7*E7 -> 12563.7
B8: Chodov | C8: m2 | D8: =443.143 -> 443.143 | E8: 30 | F8: 13294.29
B11: Nákladový ukazatel - škrábání maleb
C12: Náklady na demontáž | D12: MJ | E12: Počet MJ | F12: Nákladový ukazatel [Kč/m2] | G12: Změna
B13: D11 | C13: =F6 -> 9086.1 | D13: m2 | E13: 211 | F13: =C13/E13 -> 43.06208531 | G13: =F13*(malby!G4/malby!F4) -> 74.89058314
B14: Liberec | C14: =F7 -> 12563.7 | D14: m2 | E14: 213 | F14: =C14/E14 -> 58.98450704
B15: Chodov | C15: =F8 -> 13294.29 | D15: m2 | E15: 187 | F15: =C15/E15 -> 71.09245989
B18: VÝSLEDNÝ NÁKLADOVÝ UKAZATEL - škrábání maleb [Kč/m2] | F18: =SUM(C13:C15)/SUM(E13:E15) -> 57.19163666

Sheet tapety (hidden)
B2: NÁKLADOVÝ UKAZATEL - tapety
C3: Celkové náklady | D3: MJ | E3: Počet MJ | F3: Nákladový ukazatel [Kč/m2] | G3: Změna
B4: D11 | C4: =rekonstrukce!C8 -> 16241 | D4: m2 | E4: 211 | F4: =C4/E4 -> 76.97156398
B5: Liberec | C5: =rekonstrukce!C26 -> 28883.79 | D5: m2 | E5: 213 | F5: =C5/E5 -> 135.6046479
B6: Ústí | C6: =rekonstrukce!C36 -> 72367.27 | D6: m2 | E6: 187 | F6: =C6/E6 -> 386.9907487
B8: CELKOVÝ NÁKLADOVÝ UKAZATEL - tapety [Kč/m2] | F8: =SUM(G4,F5,F6)/3 -> 174.1984655
B27: Náklady na strhávání tapet
C28: MJ | D28: Počet MJ | E28: Jednotkový náklad | F28: Celkový náklad
C29: m2 | E29: 20 | F29: =D29*E29 -> 0

Sheet ZTI (hidden)
B2: NÁKLADOVÝ UKAZATEL - zařizovací předměty
C3: Celkové náklady | D3: MJ | E3: Počet MJ | F3: Nákladový ukazatel [Kč/os]
B4: Chodovská | C4: =C29 -> 37932 | D4: osoby | E4: 60 | F4: =C4/E4 -> 632.2
B5: Liberec | C5: =C30 -> 39139 | D5: osoby | E5: 60 | F5: =C5/E5 -> 652.3166667
B6: Ústí | C6: 37840 | D6: osoby | E6: 60 | F6: =C6/E6 -> 630.6666667
B8: VÝSLEDNÝ NÁKLADOVÝ UKAZATEL - zařizovací předměty [Kč/os] | F8: =SUM(F4:F6)/3 -> 638.3944444
B27: NÁKLADOVÝ UKAZATEL - zařizovací předměty
C28: Celkové náklady | D28: MJ | E28: Počet MJ | F28: Nákladový ukazatel
B29: Chodovská | C29: =5*457+4*1504+3028+3*457+2*552+1704+22424 -> 37932 | D29: osoby | E29: 10 | F29: =C29/E29 -> 3793.2
B30: Liberec | C30: =21357+2*1741+1408+2*3531+5830 -> 39139 | D30: osoby | E30: 8 | F30: =C30/E30 -> 4892.375
B31: Ústí | C31: =4620+3*1760+21780+2*2090+1980 -> 37840 | D31: osoby | E31: 9 | F31: =C31/E31 -> 4204.444444

Sheet ZTI - DEMONTÁŽ (hidden)
B4: Náklady na demontáž ZTI
C5: MJ | D5: Počet MJ | E5: Jednotkový náklad | F5: Celkový náklad
B6: Chodovská | C6: ks | D6: 10 | E6: 340 | F6: =D6*E6 -> 3400
B7: Liberec | C7: ks | D7: 8 | E7: 340 | F7: =D7*E7 -> 2720
B8: Ústí | C8: ks | D8: 9 | E8: 340 | F8: 3060
B11: Nákladový ukazatel - demontáž ZTI
C12: Náklady na demontáž | D12: MJ | E12: Počet MJ | F12: Nákladový ukazatel [Kč/os]
B13: Chodovská | C13: =F6 -> 3400 | D13: osoby | E13: 60 | F13: =C13/E13 -> 56.66666667
B14: Liberec | C14: =F7 -> 2720 | D14: osoby | E14: 60 | F14: =C14/E14 -> 45.33333333
B15: Ústí | C15: =F8 -> 3060 | D15: osoby | E15: 60 | F15: =C15/E15 -> 51
B18: VÝSLEDNÝ NÁKLADOVÝ UKAZATEL - demontáž ZTI [Kč/os] | F18: =SUM(C13:C15)/SUM(E13:E15) -> 51

Sheet volný interiér (hidden)
B2: NÁKLADOVÝ UKAZATEL - volný interiér
C3: Celkové náklady | D3: MJ | E3: Počet MJ | F3: Nákladový ukazatel [Kč/m2]
B4: D11 | C4: =rekonstrukce!C9-119340-0.5*(87372+117756) -> 257607 | D4: pp veř.části[m2] | E4: 89.15 | F4: =C4/E4 -> 2889.590578
B5: Liberec | C5: =rekonstrukce!C27-122670 -> 192897 | D5: pp veř.části[m2] | E5: 81.63 | F5: =C5/E5 -> 2363.06505
B6: Ústí | C6: =rekonstrukce!C37-146300 -> 332530 | D6: pp veř.části[m2] | E6: 129.04 | F6: =C6/E6 -> 2576.952883
B8: VÝSLEDNÝ NÁKLADOVÝ UKAZATEL - volný interiér [Kč/m2] | F8: =SUM(F4,F5,F6)/3 -> 2609.869503

Sheet Rekonstrukce - úvod
B3: NÁSTROJ PRO STANOVENÍ NÁKLADŮ NA REKONSTRUKCI
B4: 1. POPIS
B5: Vážený uživateli, otevřel jste nástroj, který Vám pomůže stanovit náklady na rekonstrukci restauračních zařízení vycházejících z konceptů Burger King. Tento pragram byl sestaven na základě vypracovaných nákladových ukazatelů, které vycházejí z reálných projektů, reálných nabídkových cen dodavatelů. Postupujte, prosím, dle instrukcí uvedených v bodě 2.
B11: 2. MANUÁL UŽÍVÁNÍ
B12: Při práci s programem postupujte v následujících krocích:
B13: 1.) Pro evidenci Vašeho záměru vyplňte, prosím, vstupní kartu.
B14: 2.) Na Kartě nákladů vyplňte, prosím, tabulku vstupních hodnot.
B15: 3.) Na kartě nákladů určtete zaškrtáváním políček rozsah rekonstrukce.
B16: 4.) U položek "Interiérové dveře", "Malby" a "Tapety" bude v případě kladného zaškrtnutí požadován doplňující údaj, který, prosím, vyplňte.
B18: 5.) V horní části okna karty nákladů budete mít neustálou kontrolu nad celkovými náklady za zvolený rozsah rekonstrukce.
B20: 6.) Na kartě shrnutí překontrolujte vložené údaje a výši investičních nákladů a vyexportujte tabulku nebo vytiskněte.

Sheet Rekonstrukce - vstupní karta
B2: VSTUPNÍ KARTA
B3: Koncept
B5: Název konceptu
B6: Adresa provozovny: | K6: ---------------------------------------
B7: Způsob užívání | K7: ve vlastnictví
B8: V provozu od: | K8: pronájem
B9: Termín realizace: | K9: jiný způsob

Sheet rekonstrukce - karta nákladů
C1: TABULKA VSTUPNÍCH HODNOT
C2: PP (podlahová plocha) | E2: 200 | F2: m2
C3: kapacita provozovny | E3: 60 | F3: osob
C4: CELKOVÉ NÁKLADY | E4: =C33+C40+C48+C59+C66+C73+C79 -> 1441083.663
B6: INTERIÉROVÉ DVEŘE | D6: 1 | F6: 1 | G6: 1
B9: DLAŽBA | F9: 1
B12: OBKLADY | F12: 1
B15: MALBY | F15: 1
B18: TAPETY | F18: 1
B21: ZTI | F21: 1
B24: VOLNÝ INTERIÉR | F24: 1
B28: INTERIÉROVÉ DVEŘE
B29: Měrná jednotka | C29: ='interiér dveře'!D4 -> m2
B30: Počet měrných jednotek | C30: =E2 -> 200
B31: Počet kusů veřejných dveří | D31: FALSE
B32: Nákladový ukazatel [Kč/m2] | C32: ='interiér dveře'!F9 -> 440.2646128 | D32: TRUE
B33: Celkový náklad | C33: =IF(F6=1,IF(D31=FALSE,C32*C30,C31*8380),0) -> 88052.92256
B35: DLAŽBY
B36: Měrná jednotka | C36: =dlažby!D4 -> pp veřejné části [m2]
B37: Počet měrných jednotek | C37: =E2*0.4 -> 80
B38: Nákladový ukazatel - dlažby [Kč/m2] | C38: =dlažby!F9 -> 6773.420083
B39: Nákladový ukazatel - demontáž dlažeb [Kč/m2] | C39: ='dlažby - demontáž'!F18 -> 77.09307184
B40: Celkový náklad | C40: =IF(F9=1,C38*C37+C37*C39,0) -> 548041.0524
B42: OBKLADY
B43: Měrná jednotka | C43: =obklady!D4 -> m2
B44: Počet měrných jednotek | C44: =E2 -> 200 | D44: FALSE
B45: Počet m2 obkládaných stěn
B46: Nákladový ukazatel - obklady [Kč/m2] | C46: =obklady!F8 -> 795.6317762 | D46: FALSE
B47: Nákladový ukazatel - demontáž obkladů [Kč/m2] | C47: ='obklady - demontáž'!F18 -> 51.79083926 | D47: TRUE
B48: Celkový náklad | C48: =IF(F12=1,IF(D44=FALSE,C46*C44+C44*C47,C45*1400+C47*C45)) -> 169484.5231
B54: MALBY
B55: Měrná jednotka | C55: =malby!D4 -> m2
B56: Počet měrných jednotek | C56: =E2 -> 200
B57: Nákladový ukazatel - malby [Kč/m2] | C57: =malby!F8 -> 303.6463502
A58: TRUE | B58: Nákladový ukazatel - škrábání malby [Kč/m2] | C58: =IF(A58=TRUE,'malby - škrábání'!F18,0) -> 57.19163666
B59: Celkový náklad | C59: =IF(F15=1,C57*C56+C56*C58,0) -> 72167.59738
B61: TAPETY
B62: Měrná jednotka | C62: m2
B63: Počet měrných jednotek | C63: 0
B64: Jednotkový náklad - tapetování [Kč/m2] | C64: 170
B65: Jednotkový náklad - strhnutí tapet [Kč/m2] | C65: =tapety!E29 -> 20
B66: Celkový náklad | C66: =IF(F18=1,C63*C64+C63*C65,0) -> 0
B68: ZTI
B69: Měrná jednotka | C69: =ZTI!D4 -> osoby
B70: Počet měrných jednotek | C70: =E3 -> 60
B71: Nákladový ukazatel - ZTI [Kč/os] | C71: =ZTI!F8 -> 638.3944444
B72: Nákladový ukazatel - demontáž ZTI [Kč/os] | C72: ='ZTI - DEMONTÁŽ'!F18 -> 51
B73: Celkový náklad | C73: =IF(F21=1,C71*C70+C70*C72,0) -> 41363.66667
B75: VOLNÝ INTERIÉR
B76: Měrná jednotka | C76: ='volný interiér'!D4 -> pp veř.části[m2]
B77: Počet měrných jednotek | C77: =E2 -> 200
B78: Nákladový ukazatel [Kč/m2] | C78: ='volný interiér'!F8 -> 2609.869503
B79: Celkový náklad | C79: =IF(F24=1,C78*C77,0) -> 521973.9007

Sheet rekonstrukce - shrnutí
B3: SHRNUTÍ
B4: Koncept
B7: Adresa provozovny: | E7: nám. TGM, 531 08, Opava
B8: Způsob užívání | K8: ve vlastnictví
B9: V provozu od: | E9: 5/2014 | K9: pronájem
B10: Termín realizace: | E10: 5/2016 | K10: jiný způsob
B11: Odhad nákladů | E11: ='rekonstrukce - karta nákladů'!E4 -> 1441083.663

Sheet Celková stavba - úvod
B3: NÁSTROJ PRO STANOVENÍ INVESTIČNÍCH NÁKLADŮ
B4: 1. POPIS
B5: Vážený uživateli, otevřel jste nástroj, který Vám pomůže stanovit investiční náklady na výstavbu restauračních zařízení vycházejících z konceptů Burger King. Tento pragram byl sestaven na základě vypracovaných nákladových ukazatelů, které vycházejí z reálných projektů, reálných nabídkových cen dodavatelů. Postupujte, prosím, dle instrukcí uvedených v bodě 2.
B11: 2. MANUÁL UŽÍVÁNÍ
B12: Při práci s programem postupujte v následujících krocích:
B13: 1.) Pro evidenci Vašeho záměru vyplňte, prosím, vstupní kartu.
B14: 2.) Na Kartě nákladů vyplňte, prosím, tabulku vstupních hodnot dle pokynů.
B15: 3.) Na kartě nákladů v I. Oddílu vyberte možnost stanovení celkového nákladu a překontrolujte jednotlivé oddíly nástroje na stanovení investičních nákladů.
B16: 4.) V horní části okna Karty nákladů budete mít neustálou kontrolu nad celkovými náklady za zvolený rozsah a umístění stavby.
B18: 5.) Na Kartě rekapitulace překontrolujte vložené údaje a výši investičních nákladů a vyexportujte tabulku nebo vytiskněte.

Sheet celková stavba - vstupní karta
B2: VSTUPNÍ KARTA | K2: ---------------------------------------
B3: Koncept | H3: 3 | K3: Burger King
B4: Název konceptu | E4: =IF(H3=2,"Burger King",IF(H3=3,"Napište název konceptu","")) -> Napište název konceptu | K4: Jiný
B5: Adresa provozovny: | K5: ---------------------------------------
B6: Způsob užívání | H6: 3 | K6: ve vlastnictví
B7: Termín realizace: | K7: pronájem

Sheet celková stavba - karta nákladů
A1: TABULKA VSTUPNÍCH HODNOT
A2: PP (podlahová plocha) | C2: 200 | D2: m2
A3: kapacita provozovny | C3: 60 | D3: osob | I3: průměrná cena nájemného nebytových prostor (Kč/měsíc)
A4: vzdálenost provozovny od sídla | C4: 150 | D4: km | I4: Lokalita | J4: Rok
A5: lokalita provozovny | G5: 23 | J5: 2010 | K5: 2014
A6: reklamní pylon
A7: venkovní posezení | E7: FALSE | F7: FALSE
A8: CELKOVÉ NÁKLADY | C8: =C16+C53+C61+C69+C75+C82+C112+C120+C128+C136+C152+C162 -> 13419374.33 | E8: 1 $= | F8: 22.14 | I8: Praha 1 | J8: 400 | K8: 480
I9: Praha 2 | J9: 360 | K9: =CEILING(J9*$K$8/$J$8,10) -> 440
A10: I. ODDÍL - PROJEKTOVÉ A PRŮZKUMNÉ PRÁCE | I10: Praha 3 | J10: 280 | K10: =CEILING(J10*$K$8/$J$8,10) -> 340
A11: projektové a průzkumné práce | I11: Praha 4 | J11: 250 | K11: 300
A12: Způsob stanovení | E12: 2 | F12: nákladový ukazatel | I12: Praha 5 | J12: 260 | K12: 320
A13: Měrná jednotka | C13: =IF(E12=1,"m2",IF(E12=2,"%","")) -> % | F13: % z III. Oddílu | I13: Praha 6 | J13: 290 | K13: 350
A14: Počet měrných jednotek | C14: =IF(E12=1,C2,IF(E12=2,8,"")) -> 8 | F14: cena dle nabídky | I14: Praha 7 | J14: 230 | K14: 280
A15: Nákladový ukazatel [Kč/m2] | C15: =IF(E12=1,'projektové práce'!F8,"") ->  | I15: Praha 8 | J15: 200 | K15: 240
A16: Celkový náklad I.oddílu | C16: =IF(E12=1,C14*C15,IF(E12=2,C14/100*C61,"Napište nabídkovou cenu")) -> 419978.6667 | I16: Praha 9 | J16: 180 | K16: 220
I17: Praha 10 | J17: 210 | K17: 260
A18: II. ODDÍL - PROVOZNÍ SOUBORY | I18: Praha - východ | J18: 70 | K18: 90
A19: kuchyně | I19: Praha - západ | J19: 75 | K19: 90
A20: Způsob stanovení | C20: nákladový ukazatel | I20: Středočeský kraj | J20: 50 | K20: 60
A21: Měrná jednotka | C21: osoby | I21: Jihočeská kraj | J21: 60 | K21: 80
A22: Počet měrných jednotek | C22: =$C$3 -> 60 | I22: Plzeňský kraj | J22: 65 | K22: 80
A23: Nákladový ukazatel [Kč/os] | C23: =kuchyně!F9 -> 44107 | I23: Karlovarský kraj | J23: 80 | K23: 100
A24: Celkový náklad | C24: =C22*C23 -> 2646420 | I24: Ústecký kraj | J24: 55 | K24: 70
I25: Liberecký kraj | J25: 60 | K25: 80
A26: kasy | I26: Královehradecký kraj | J26: 80 | K26: 100
A27: Způsob stanovení | C27: nákladový ukazatel | I27: Pardubický kraj | J27: 80 | K27: 100
A28: Měrná jednotka | C28: osoby | I28: Kraj Vysočina | J28: 60 | K28: 80
A29: Počet měrných jednotek | C29: =$C$3 -> 60 | I29: Jihomoravský kraj | J29: 100 | K29: 120
A30: Nákladový ukazatel [Kč/os] | C30: =kasy!$F$8 -> 8117.333333 | I30: Olomoucký kraj | J30: 55 | K30: 70
A31: Celkový náklad | C31: =C29*C30 -> 487040 | I31: Moravskoslezský kraj | J31: 40 | K31: 50
I32: Zlínský kraj | J32: 50 | K32: 60
A33: boxy
A34: Způsob stanovení | C34: nákladový ukazatel
A35: Měrná jednotka | C35: osoby
A36: Počet měrných jednotek | C36: =$C$3 -> 60
A37: Nákladový ukazatel [Kč/os] | C37: ='chladící a mrazící boxy'!F8 -> 6115.666667
A38: Celkový náklad | C38: =C36*C37 -> 366940
A40: zmrzlinovač
A41: Způsob stanovení | C41: konstantní náklad
A42: Měrná jednotka | C42: ks
A43: Počet měrných jednotek | C43: 1
A44: Nákladový ukazatel [Kč/ks] | C44: =Ústí!D16 -> 389640
A45: Celkový náklad | C45: =C43*C44 -> 389640
A47: menuboard
A48: Způsob stanovení | C48: nákladový ukazatel
A49: Měrná jednotka | C49: m2
A50: Počet měrných jednotek | C50: =$C$2 -> 200
A51: Nákladový ukazatel [Kč/m2] | C51: =menuboard!F8 -> 2235
A52: Celkový náklad | C52: =C50*C51 -> 447000
A53: Celkový náklad II.oddílu | C53: =C52+C45+C38+C31+C24 -> 4337040
A55: III. ODDÍL - STAVEBNÍ OBJEKTY
A56: stavební objekty
A57: Způsob stanovení | C57: nákladový ukazatel
A58: Měrná jednotka | C58: m2
A59: Počet měrných jednotek | C59: =$C$2 -> 200
A60: Nákladový ukazatel [Kč/m2] | C60: ='stavební práce'!$F$9 -> 26248.66667
A61: Celkový náklad III.oddílu | C61: =C59*C60 -> 5249733.333
A63: IV. ODDÍL - STROJE, ZAŘÍZENÍ, INVENTÁŘ
A64: interiér
A65: Způsob stanovení | C65: nákladový ukazatel
A66: Měrná jednotka | C66: osoby
A67: Počet měrných jednotek | C67: =$C$3 -> 60
A68: Nákladový ukazatel [Kč/os] | C68: =interiér!F8 -> 15960
A69: Celkový náklad IV.oddílu | C69: =IF(F7=TRUE,C67*C68*1.1,C67*C68) -> 957600
A71: V. UMĚLECKÁ DÍLA
A72: umělecká díla
A73: Vzhledem k investiční povaze nebude investor zatížen náklady z tohoto oddílu.
A75: Celkový náklad V.oddílu | C75: 0
A77: VI. ODDÍL - NÁKLADY NA UMÍSTĚNÍ STAVBY
A78: náklady na umístění stavby
A79: Náklady na umístění stavby jsou již započítány v jednotlivých nabídkách, ze kterých jsou data čerpána, a proto se nebudou tyto náklady podruhé započítávat.
A82: Celkový náklad VI.oddílu | C82: 0
A84: VII. ODDÍL - OSTATNÍ NÁKLADY
A85: odborné služby
A86: Způsob stanovení | C86: nákladový ukazatel
A87: Měrná jednotka | C87: m2
A88: Počet měrných jednotek | C88: =$C$2 -> 200
A89: Nákladový ukazatel [Kč/m2] | C89: ='odborné služby'!F8 -> 1245
A90: Celkový náklad | C90: =C88*C89 -> 249000
A92: pojištění
A93: Způsob stanovení | C93: konstantní náklad
A94: Měrná jednotka | C94: ks
A95: Počet měrných jednotek | C95: 1
A96: Nákladový ukazatel [Kč/ks] | C96: 150000
A97: Celkový náklad | C97: =C95*C96 -> 150000
A99: nájem před provozem
A100: Způsob stanovení | C100: nákladový ukazatel
A101: Měrná jednotka | C101: m2
A102: Počet měrných jednotek | C102: =$C$2 -> 200
A103: Jednotkový nájem za m2 | C103: =IF('celková stavba - vstupní karta'!H6=3,IF(G5=1,K8,IF(G5=2,K9,IF(G5=3,K10,IF(G5=4,K11,IF(G5=5,K12,IF(G5=6,K13,IF(G5=7,K14,IF(G5=8,K15,IF(G5=9,K16,IF(G5=10,K17,IF(G5=11,K18,IF(G5=12,K19,IF(G5=13,K20,IF(G5=14,K21,IF(G5=15,K22,IF(G5=16,K23,IF(G5=17,K24,IF(G5=18,K25,IF(G5=19,K26,IF(G5=20,K27,IF(G5=21,K28,IF(G5=22,K29,IF(G5=23,K30,IF(G5=24,K31,IF(G5=25,K32,0))))))))))))))))))))))))),0) -> 70
A104: Celkový náklad za 4 měsíce | C104: =C103*C102*4 -> 56000
A106: peněžní deposit
A107: Způsob stanovení | C107: konstantní náklad
A108: Měrná jednotka | C108: ks
A109: Počet měrných jednotek | C109: 1
A110: Nákladový ukazatel [Kč/ks] | C110: 46920
A111: Celkový náklad | C111: =C109*C110 -> 46920
A112: Celkový náklad VII.oddílu | C112: =C111+C104+C97+C90 -> 501920
A114: VIII. ODDÍL - REZERVA
A115: rezerva
A116: Způsob stanovení | C116: poměr k 3.oddílu
A117: Měrná jednotka | C117: %
A118: Počet měrných jednotek | C118: 10
A119: Základ nákladu | C119: =C61 -> 5249733.333
A120: Celkový náklad VIII. oddílu | C120: =C118/100*C119 -> 524973.3333
A122: IX. ODDÍL - OSTATNÍ INVESTICE
A123: pylon
A124: Způsob stanovení | C124: konstatní náklad
A125: Měrná jednotka | C125: ks
A126: Počet měrných jednotek | C126: 1
A127: Nákladový ukazatel [Kč/ks] | C127: ='D11'!D19 -> 306000
A128: Celkový náklad IX. oddílu | C128: =IF(E7=TRUE,C127*C126,0) -> 0
A130: X. ODDÍL - NEHMOTNÝ INVESTIČNÍ MAJETEK
A131: franchisa
A132: Způsob stanovení | C132: konstantní náklad
A133: Měrná jednotka | C133: ks
A134: Počet měrných jednotek | C134: 1
A135: Nákladový ukazatel [Kč/ks] | C135: =22350*F8 -> 494829
A136: Celkový náklad X. oddílu | C136: =C134*C135 -> 494829
A138: XI. ODDÍL - PROVOZNÍ NÁKLADY NA PŘÍPRAVU A REALIZACI
A139: mzdy před provozem
A140: Způsob stanovení | C140: konstantní náklad
A141: Měrná jednotka | C141: ks
A142: Počet měrných jednotek | C142: 1
A143: Nákladový ukazatel [Kč/ks] | C143: =mzdy!F9 -> 589600
A144: Celkový náklad | C144: =C142*C143 -> 589600
A146: cestovné BK
A147: Způsob stanovení | C147: nákladový ukazatel
A148: Měrná jednotka | C148: km
A149: Počet měrných jednotek | C149: =$C$4 -> 150
A150: Nákladový ukazatel [Kč/km] | C150: =cestovné!F8 -> 2291.333333
A151: Celkový náklad | C151: =C149*C150 -> 343700
A152: Celkový náklad XI.oddílu | C152: =C151+C144 -> 933300
A158: XII. ODDÍL - KOMPLETAČNÍ ČINNOST
A159: kompletační činnost
A160: Vzhledem k investiční povaze nebude investor zatížen náklady z tohoto oddílu.
A162: Celkový náklad XII. oddílu | C162: 0

Sheet celková stavba - rekapitulace
A2: SHRNUTÍ
A3: Koncept
A5: Název konceptu
A6: Název konceptu | D6: BK Brno
A7: Způsob užívání | D7: =IF('celková stavba - vstupní karta'!H6=2,"ve vlastnictví","pronájem") -> pronájem
A8: Termín realizace: | D8: 11/2014-2/2015
A14: REKAPITULACE
A15: INVESTIČNÍ ODDÍL | C15: NÁKLADY BEZ DPH | D15: DPH | E15: DPH | F15: Náklady s DPH
A17: I. Projektové a průzkumné práce | C17: ='celková stavba - karta nákladů'!C16:D16 -> 419978.6667 | D17: 0.21 | E17: =C17*D17 -> 88195.52 | F17: =E17+C17 -> 508174.1867
A18: II. Provozní soubory | C18: ='celková stavba - karta nákladů'!C53:D53 -> 4337040 | D18: 0.21 | E18: =C18*D18 -> 910778.4 | F18: =E18+C18 -> 5247818.4
A19: III. Stavební objekty | C19: ='celková stavba - karta nákladů'!C61:D61 -> 5249733.333 | D19: 0.21 | E19: 1102444 | F19: 6352177.333
A20: IV. Stroje, zařízení a inventář | C20: ='celková stavba - karta nákladů'!C69:D69 -> 957600 | D20: 0.21 | E20: 201096 | F20: 1158696
A21: V. Umělecká díla | C21: 0 | D21: 0.21 | E21: 0 | F21: 0
A22: VI. Náklady na umístění stavby (NUS) | C22: ='celková stavba - karta nákladů'!C82:D82 -> 0 | D22: 0.21 | E22: 0 | F22: 0
A23: VII. Ostatní náklady | C23: ='celková stavba - karta nákladů'!C112:D112 -> 501920 | D23: 0.21 | E23: 105403.2 | F23: 607323.2
A24: VIII. Rezerva | C24: ='celková stavba - karta nákladů'!C120:D120 -> 524973.3333 | D24: 0.21 | E24: 110244.4 | F24: 635217.7333
A25: IX. Ostatní investice | C25: ='celková stavba - karta nákladů'!C128:D128 -> 0 | D25: 0.21 | E25: 0 | F25: 0
A26: X. Nehmotný investiční majetek | C26: ='celková stavba - karta nákladů'!C136:D136 -> 494829 | D26: 0.21 | E26: 103914.09 | F26: 598743.09
A27: XI. Provozní náklady na přípravu a realizaci | C27: ='celková stavba - karta nákladů'!C152:D152 -> 933300 | D27: 0.21 | E27: 195993 | F27: 1129293
A28: XII. Kompletační činnost | C28: ='celková stavba - karta nákladů'!C162:D162 -> 0 | D28: 0.21 | E28: 0 | F28: 0
A31: PŘEDPOKLÁDANÉ NÁKLADY NA REALIZACI STAVBY BEZ DPH | E31: =C19 -> 5249733.333
A32: DPH (21%) | E32: =E31*0.21 -> 1102444
A33: PŘEDPOKLÁDANÉ NÁKLADY NA REALIZACI STAVBY S DPH | E33: =SUM(E31:E32) -> 6352177.333
A35: CELKOVÉ NÁKLADY BEZ DPH | E35: =SUM(C17:C28) -> 13419374.33
A36: DPH (21%) | E36: =E35*0.21 -> 2818068.61
A37: CELKOVÉ NÁKLADY S DPH | E37: =SUM(E35:E36) -> 16237442.94
